bitfinex/quotes_ETHUSD_20250722
["timestamp","ask_amount","ask_price","bid_price","bid_amount"]
[1753198449532,1e-08,3715.6,3715.5,11.6261289]
[1753198449733,1e-08,3715.6,3715.5,12.02841463]
[1753198449938,1e-08,3715.6,3715.5,12.16281463]
[1753198450097,0.7708,3716.9,3716.6,2.69063122]
[1753198450299,0.002,3716.9,3716.6,2.71753753]
[1753198450500,0.002,3716.9,3716.6,8.0635157]
[1753198450702,0.002,3716.9,3716.6,11.46580939]
[1753198451146,0.002,3716.9,3716.6,6.57060939]
[1753198451435,0.002,3716.9,3716.6,10.49478334]
[1753198452429,0.002,3716.9,3716.6,7.51142154]
[1753198452610,0.002,3716.9,3716.6,7.30653931]
[1753198452811,0.002,3716.9,3716.6,10.73573931]
[1753198453540,0.002,3716.9,3716.6,10.30653931]
[1753198453712,0.002,3716.9,3716.6,12.03546566]
[1753198453916,0.002,3716.9,3716.6,12.2787576]
[1753198454125,0.002,3716.9,3716.6,7.3845576]
[1753198454310,0.002,3716.9,3716.6,10.54683125]
[1753198454510,0.002,3716.9,3716.6,11.18241544]
[1753198455410,0.002,3716.9,3716.6,10.75321528]
[1753198455798,0.002,3716.9,3716.6,11.1821746]
[1753198456045,0.002,3716.9,3716.6,12.36305821]
[1753198456925,0.002,3716.9,3716.6,11.93385821]
[1753198457123,0.002,3716.9,3716.6,6.08455283]
[1753198457329,0.002,3716.9,3716.6,10.54455283]
[1753198457556,0.4323,3716.7,3716.6,0.15065175]
[1753198457742,0.4323,3716.7,3716.6,4.47425175]
[1753198457909,0.4323,3716.7,3716.6,4.71701509]
[1753198458105,0.4323,3716.7,3716.6,4.71703894]
[1753198458413,0.82679983,3716.7,3716.6,4.71703894]
[1753198458721,0.002,3716.7,3716.6,7.40767016]
[1753198458921,0.002,3716.7,3716.6,7.54207016]
[1753198459119,0.002,3716.7,3716.6,7.54089821]
[1753198460252,0.002,3716.7,3716.6,7.97579821]
[1753198460446,0.002,3716.7,3716.6,7.54089821]
[1753198461142,0.002,3716.7,3716.6,4.85026699]
[1753198461367,0.7586,3716.7,3716.6,0.39226699]
[1753198461564,1.1889,3716.7,3716.6,0.39226699]
[1753198461772,0.7586,3716.7,3716.6,4.84726699]
[1753198462144,3.87945882,3716.7,3716.6,0.25786699]
[1753198462345,3.87945882,3716.7,3716.6,4.4700798]
[1753198462346,4.53966823,3716.7,3716.6,4.4700798]
[1753198463435,4.53966823,3716.7,3716.6,4.4680798]
[1753198463754,4.53966823,3716.7,3716.6,0.5150798]
[1753198463959,4.53966823,3716.7,3716.6,4.9680798]
[1753198464270,1.98350941,3716.7,3716.6,5.21184417]
[1753198464574,1.3233,3716.7,3716.6,5.21184417]
[1753198464876,0.002,3716.7,3716.6,5.34624417]
[1753198465077,0.002,3716.7,3716.6,8.03687539]
[1753198465260,0.002,3716.7,3716.6,5.34524417]
[1753198465443,0.002,3716.7,3716.6,0.89324417]
[1753198465770,0.002,3716.7,3716.6,5.34524417]
[1753198465967,0.002,3716.7,3716.6,8.0627817]
[1753198466167,0.002,3716.7,3716.6,8.03587539]
[1753198466866,0.002,3716.7,3716.6,7.53587539]
[1753198467071,0.002,3716.7,3716.6,11.99343913]
[1753198467971,1e-08,3716.7,3716.6,12.77103913]
[1753198468855,1e-08,3716.7,3716.6,13.32103913]
[1753198469258,1e-08,3716.7,3716.6,12.54078608]
[1753198470169,1e-08,3717.0,3716.6,12.54078608]
[1753198470380,1e-08,3717.0,3716.9,7.04881405]
[1753198470560,1e-08,3717.0,3716.9,11.87532537]
[1753198470767,1e-08,3717.0,3716.9,12.31022537]
[1753198471073,1e-08,3717.1,3717.0,3.55]
[1753198471273,0.773,3720.3,3717.3,0.7909]
[1753198471475,3.1183456,3720.2,3718.3,4.3409]
[1753198471676,0.773,3720.3,3718.3,4.3409]
[1753198471677,2.68834378,3719.8,3718.4,1.16337903]
[1753198471878,3.11841182,3720.1,3718.6,3.0]
[1753198472078,0.4303,3720.1,3718.8,3.0]
[1753198472379,0.4303,3720.1,3718.9,7.40592691]
[1753198472579,0.4303,3720.1,3719.0,0.24411132]
[1753198472748,0.4303,3720.1,3719.1,4.69011132]
[1753198472949,3.11841159,3720.1,3719.3,2.68866078]
[1753198473150,1.08823707,3720.1,3719.4,0.24411132]
[1753198473362,0.4303,3720.1,3719.5,0.24411132]
[1753198473565,0.4303,3720.1,3719.6,4.69011132]
[1753198473736,0.4303,3720.1,3719.7,4.68911132]
[1753198473943,0.4303,3720.0,3719.8,4.68911132]
[1753198474145,2.68818166,3720.0,3719.9,4.68911132]
[1753198474347,2.68810333,3720.1,3719.9,4.68911132]
[1753198474640,3.30300994,3720.1,3720.0,0.24411132]
[1753198474840,4.14662978,3720.1,3720.0,0.24411132]
[1753198475147,4.11840994,3720.1,3720.0,4.444]
[1753198475342,4.54870994,3720.1,3720.0,4.68720314]
[1753198476178,2.6882443,3719.9,3719.8,0.01054973]
[1753198476387,2.6882443,3719.9,3719.8,0.25369556]
[1753198476800,3.79920972,3719.9,3719.8,0.25369556]
[1753198477015,3.79920972,3719.9,3719.8,4.69669556]
[1753198477305,0.8154,3720.1,3719.8,4.69669556]
[1753198477593,2.68822189,3720.0,3719.9,0.24314583]
[1753198477767,0.8154,3720.1,3719.9,0.24314583]
[1753198477954,0.8154,3720.1,3719.8,4.45354973]
[1753198478162,0.8154,3720.1,3719.9,0.24310621]
[1753198478374,3.50351521,3720.1,3720.0,0.24310621]
[1753198478552,2.6882443,3719.9,3719.8,0.01054973]
[1753198478756,2.6882443,3719.9,3719.8,4.69471726]
[1753198478960,3.1185443,3719.9,3719.8,0.25371726]
[1753198479189,3.1185443,3719.9,3719.8,4.69371726]
[1753198479190,0.4303,3719.9,3719.8,4.69371726]
[1753198479377,3.50354899,3720.1,3719.8,4.69371726]
[1753198479593,3.93384899,3720.1,3719.9,0.24316753]
[1753198479907,3.93384899,3720.1,3720.0,0.24316753]
[1753198480065,2.68823078,3720.0,3719.8,4.45054973]
[1753198480268,3.11853078,3720.0,3719.9,4.68308614]
[1753198480471,1.47757412,3720.1,3719.9,4.68308614]
[1753198480668,0.8154,3720.1,3720.0,0.24307751]
[1753198481367,0.1336,3720.5,3720.0,0.74307751]
[1753198481568,0.4303,3721.2,3720.1,0.2699585]
[1753198481891,0.1336,3720.8,3720.2,4.81467751]
[1753198482093,0.1336,3720.8,3720.3,0.26995706]
[1753198482282,0.36321608,3720.8,3720.4,4.68107751]
[1753198482479,0.1336,3721.0,3720.4,0.1336]
[1753198482682,0.1336,3721.0,3720.5,4.438]
[1753198483199,2.68753932,3720.9,3720.5,4.4648781]
[1753198483403,0.1336,3721.0,3720.5,4.438]
[1753198483577,2.68764863,3720.8,3720.5,4.438]
[1753198483784,2.68775391,3720.6,3720.0,0.5]
[1753198484095,2.68775391,3720.6,3719.8,0.01054973]
[1753198484096,2.6882443,3719.9,3719.8,0.01054973]
[1753198484267,0.1344,3720.2,3719.8,4.67913063]
[1753198484467,0.7571,3720.7,3719.9,0.70491307]
[1753198484669,0.7571,3720.7,3720.2,0.1336]
[1753198484898,0.7571,3720.7,3720.3,4.70488651]
[1753198485098,0.7571,3721.0,3720.5,0.1336]
[1753198485298,1.15792864,3721.0,3720.6,0.02687738]
[1753198485496,1.15792864,3721.0,3720.3,0.01123354]
[1753198485497,2.68788302,3720.4,3720.3,0.01123354]
[1753198485696,0.7571,3720.4,3720.3,4.44623354]
[1753198485911,3.44498302,3720.4,3720.3,4.44623354]
[1753198486274,3.87528302,3720.4,3720.3,4.44623354]
[1753198486482,3.87528302,3720.4,3720.3,4.94623354]
[1753198486725,0.96352413,3723.3,3720.4,30.7906]
[1753198486906,0.96352413,3723.3,3722.4,0.7906]
[1753198487087,0.7597,3724.3,3722.6,3.0]
[1753198487286,0.4303,3723.9,3722.8,3.0]
[1753198488101,0.02821984,3723.8,3722.8,3.0]
[1753198488302,0.4303,3723.9,3722.9,4.434]
[1753198488505,0.4303,3723.9,3722.6,3.0]
[1753198488506,0.79671984,3723.8,3723.0,4.434]
[1753198488717,0.4303,3723.7,3722.6,3.19758157]
[1753198488901,0.4303,3723.7,3722.7,7.14707562]
[1753198489095,0.7685,3723.8,3722.7,4.434]
[1753198489408,0.7685,3723.8,3723.0,3.0]
[1753198489717,0.7685,3724.6,3723.3,3.0]
[1753198489919,0.7685,3724.6,3723.4,4.45885717]
[1753198490288,2.68499145,3724.5,3723.5,4.432]
[1753198490621,0.7502,3724.3,3723.6,4.432]
[1753198491519,0.7502,3724.3,3723.9,0.5]
[1753198491731,2.68521189,3724.2,3723.9,0.5]
[1753198491885,2.68528464,3724.0,3723.9,0.5]
[1753198492206,3.0288331,3724.0,3723.9,4.932]
[1753198492389,0.34354846,3724.0,3723.9,4.932]
[1753198492820,3.0288331,3724.0,3723.9,4.932]
[1753198492987,2.68528464,3724.0,3723.9,4.932]
[1753198493188,2.68528464,3724.0,3723.9,0.5]
[1753198493416,2.68528464,3724.0,3723.9,4.931]
[1753198493914,3.11558464,3724.0,3723.9,5.17236642]
[1753198494120,3.7706847,3724.0,3723.9,4.67236642]
[1753198494997,3.7706847,3724.0,3723.9,0.24136642]
[1753198495318,2.68599028,3723.1,3722.6,3.65558157]
[1753198495487,2.71359707,3723.9,3722.8,3.0]
[1753198495687,2.68593644,3723.1,3722.9,0.24143203]
[1753198496000,2.68587391,3723.2,3723.0,0.24143203]
[1753198496212,2.68587391,3723.2,3723.1,0.24143203]
[1753198496801,2.68587391,3723.2,3723.1,4.67143203]
[1753198497317,2.68587391,3723.2,3723.1,0.24143203]
[1753198497489,3.30081349,3723.2,3723.1,4.67143203]
[1753198498222,3.30081349,3723.2,3723.1,0.24143203]
[1753198498423,3.75933333,3723.2,3723.1,0.24143203]
[1753198498583,3.75933333,3723.2,3723.1,4.43]
[1753198498786,2.68622236,3722.7,3722.6,0.19758157]
[1753198499031,3.35705793,3722.7,3722.6,4.67178256]
[1753198499402,2.81982236,3722.7,3722.6,4.67178256]
[1753198499601,2.81982236,3722.7,3722.6,0.24178256]
[1753198500122,4.03976668,3722.5,3722.4,1e-08]
[1753198500323,4.06798652,3722.5,3722.4,1e-08]
[1753198500527,4.06798652,3722.5,3720.5,0.458]
[1753198500528,0.55,3722.1,3720.8,0.1336]
[1753198500729,2.68744961,3721.0,3720.9,4.43]
[1753198501223,0.02821984,3721.0,3720.0,0.458]
[1753198501450,2.68788302,3720.4,3720.3,4.43]
[1753198501649,0.7831,3721.3,3720.0,0.001]
[1753198501850,3.47036059,3721.3,3720.3,4.91487955]
[1753198502053,2.68765092,3720.8,3720.3,4.91487955]
[1753198502351,2.6878276,3720.5,3720.0,0.001]
[1753198502553,2.68765436,3720.8,3720.4,4.43]
[1753198502757,1.17316606,3721.3,3720.4,4.43]
[1753198502929,2.68775313,3720.6,3720.4,4.43]
[1753198503131,0.7831,3721.3,3720.5,3.0]
[1753198503330,0.7523,3721.9,3720.5,3.4848781]
[1753198503531,2.68766629,3720.7,3720.6,4.43]
[1753198503949,2.68788302,3720.4,3720.3,3.0]
[1753198504117,2.68788302,3720.4,3720.3,4.43]
[1753198504319,2.68795527,3720.3,3720.0,0.001]
[1753198504542,2.68809978,3720.1,3720.0,0.001]
[1753198504767,2.68867797,3719.3,3719.2,4.0]
[1753198505059,3.45139978,3720.1,3718.9,4.43]
[1753198505060,0.4303,3719.8,3718.9,4.43]
[1753198505262,0.02821984,3719.7,3719.0,4.43]
[1753198505443,0.55,3720.0,3719.0,4.43]
[1753198505642,0.7633,3720.1,3719.1,0.02688822]
[1753198505962,2.68817204,3720.0,3719.1,0.02688822]
[1753198506275,2.68817204,3720.0,3719.2,4.43]
[1753198506276,2.68822351,3720.0,3719.2,4.43]
[1753198506436,0.7633,3720.1,3719.2,4.43]
[1753198506437,0.7633,3720.1,3719.3,3.48488677]
[1753198506639,2.6878155,3720.5,3719.3,0.458]
[1753198506847,0.8319,3720.6,3719.5,3.0]
[1753198506848,3.51963946,3720.6,3719.5,3.0]
[1753198507048,0.7787,3721.2,3719.6,0.48488461]
[1753198507356,2.68736759,3721.2,3719.8,2.68831657]
[1753198507562,2.68736759,3721.2,3719.9,0.48488244]
[1753198507720,0.7787,3721.7,3720.2,2.68801163]
[1753198507925,2.68731148,3721.2,3720.4,0.7647]
[1753198508150,0.02821984,3721.4,3720.5,4.43]
[1753198508338,2.68741995,3721.1,3720.6,4.45687738]
[1753198508555,2.68745419,3721.0,3720.7,4.43]
[1753198508744,2.68737742,3721.1,3720.7,4.43]
[1753198509242,3.11737462,3721.6,3720.7,4.43]
[1753198509442,2.68721862,3721.4,3720.7,4.45687666]
[1753198509647,2.68701633,3721.6,3720.7,4.45687666]
[1753198510047,2.6872959,3721.3,3720.7,4.43]
[1753198510767,0.7787,3721.7,3720.7,4.43]
[1753198510768,0.7787,3721.7,3720.8,4.43]
[1753198511061,0.55,3721.3,3719.3,1.2831]
[1753198511364,2.68730517,3721.2,3719.6,3.458]
[1753198511523,0.1336,3720.6,3720.0,0.1344]
[1753198511728,0.1336,3720.6,3720.1,0.02688099]
[1753198511935,0.1336,3720.6,3720.2,0.70082268]
[1753198512158,0.1336,3720.6,3720.3,4.69970223]
[1753198512474,0.02821984,3720.9,3720.4,0.24282268]
[1753198512758,2.68803414,3720.2,3719.9,0.1344]
[1753198512957,2.68809978,3720.1,3720.0,0.242852]
[1753198513156,2.68809978,3720.1,3720.0,4.672852]
[1753198513726,2.82243883,3720.2,3720.0,4.672852]
[1753198513926,2.82243883,3720.2,3720.1,0.242852]
[1753198514162,2.82243883,3720.2,3720.1,4.672852]
[1753198514338,2.82243883,3720.2,3720.1,0.242852]
[1753198514541,3.90840128,3720.2,3720.1,0.242852]
[1753198514739,2.68875026,3719.2,3719.1,6.5814]
[1753198514943,2.68875026,3719.2,3719.1,4.67310048]
[1753198515150,2.68875026,3719.2,3719.1,0.24310048]
[1753198515452,2.68875026,3719.2,3719.1,4.67310048]
[1753198515852,3.35052156,3719.2,3719.1,0.24310048]
[1753198516042,2.6891841,3718.6,3718.3,6.448]
[1753198516460,2.6891841,3718.6,3718.5,4.431]
[1753198516665,2.6891841,3718.6,3718.5,0.001]
[1753198517163,4.4794841,3718.6,3718.5,0.001]
[1753198517330,5.20978214,3718.6,3718.5,0.001]
[1753198517963,8.23800198,3718.6,3718.5,1e-08]
[1753198518266,8.20978214,3718.6,3718.5,1e-08]
[1753198521869,4.77948214,3718.6,3718.5,1e-08]
[1753198522090,4.0491841,3718.6,3718.5,1e-08]
[1753198522952,2.6891841,3718.6,3718.5,1e-08]
[1753198523149,0.1344,3718.7,3718.5,1e-08]
[1753198523591,0.1344,3718.7,3718.5,0.43770001]
[1753198523761,0.1344,3718.7,3718.5,1e-08]
[1753198523966,0.8109,3719.6,3718.6,0.4377]
[1753198524174,2.82335276,3719.0,3718.6,0.4377]
[1753198524375,0.1344,3719.0,3718.5,1e-08]
[1753198524574,0.02821984,3719.5,3718.5,1e-08]
[1753198524575,2.6891841,3718.6,3718.5,1e-08]
[1753198525994,4.4774841,3718.6,3718.5,1e-08]
[1753198526162,5.19695844,3718.6,3718.5,1e-08]
[1753198526356,8.19695844,3718.6,3718.5,1e-08]
[1753198526887,22.69695844,3718.6,3718.5,1e-08]
[1753198527467,22.8264825,3718.6,3718.5,1e-08]
[1753198527670,3.24026929,3717.1,3717.0,0.001]
[1753198527869,0.1344,3717.1,3717.0,0.6824284]
[1753198528070,2.6899311,3717.6,3717.0,1.4737284]
[1753198528395,0.1344,3717.6,3717.1,0.27063109]
[1753198528593,0.1344,3717.6,3717.2,0.83149151]
[1753198528889,0.1344,3717.6,3717.3,0.2437284]
[1753198529090,0.1344,3717.6,3717.4,0.2437284]
[1753198529295,0.1344,3717.6,3717.5,0.2437284]
[1753198529660,2.82437703,3717.6,3717.5,0.2437284]
[1753198529855,0.1344,3717.6,3717.3,0.2437284]
[1753198530186,2.68996535,3717.6,3717.4,0.2437284]
[1753198530495,2.68982418,3717.8,3717.5,0.2437284]
[1753198530789,0.55,3718.3,3717.6,0.2437284]
[1753198530992,2.68977062,3717.8,3717.7,0.24381521]
[1753198532171,3.67007062,3717.8,3717.7,0.24381521]
[1753198532574,3.67007062,3717.8,3717.0,0.001]
[1753198532575,2.69026929,3717.1,3717.0,0.001]
[1753198532780,2.07852994,3717.1,3717.0,0.24490586]
[1753198533797,2.62852994,3717.1,3717.0,0.24490586]
[1753198534106,3.20624936,3717.1,3717.0,0.24490586]
[1753198534620,4.44304936,3717.1,3717.0,0.24490586]
[1753198534901,4.44304936,3717.1,3717.0,0.001]
[1753198535690,2.68985756,3717.7,3717.0,0.001]
[1753198535691,0.002,3718.6,3718.5,6.52125642]
[1753198535862,0.002,3718.6,3718.5,27.45660187]
[1753198536203,0.002,3718.6,3718.5,26.88355068]
[1753198536510,0.002,3718.6,3718.5,12.8590821]
[1753198536720,0.002,3718.6,3718.5,19.13728863]
[1753198537217,0.002,3718.6,3718.5,16.44803221]
[1753198537411,0.002,3718.6,3718.5,19.37782738]
[1753198538402,0.002,3718.6,3718.5,16.49169935]
[1753198538600,0.002,3718.6,3718.5,12.02169935]
[1753198538798,0.002,3718.6,3718.5,14.71095577]
[1753198539016,0.002,3718.6,3718.5,16.48869935]
[1753198539218,0.002,3718.6,3718.5,16.48769935]
[1753198539424,0.002,3718.6,3718.5,10.8571]
[1753198539613,0.002,3718.6,3718.5,15.1867]
[1753198541824,0.1364,3719.4,3718.6,3.0]
[1753198542025,0.1364,3719.4,3718.7,0.24406265]
[1753198542229,0.1364,3719.4,3718.8,0.68176265]
[1753198542401,0.1364,3719.4,3718.9,0.62567892]
[1753198542613,0.1364,3719.4,3719.0,4.70106265]
[1753198542803,0.1364,3719.4,3719.1,0.24406265]
[1753198543003,0.1364,3719.4,3719.2,0.24406265]
[1753198543203,0.1364,3719.4,3719.3,0.24406265]
[1753198543957,0.1364,3719.4,3719.3,4.70006265]
[1753198544120,2.82500568,3719.4,3719.3,4.69906265]
[1753198544306,0.1364,3719.4,3719.3,4.69906265]
[1753198545798,0.1364,3719.4,3719.3,5.60724426]
[1753198546005,0.1,3722.5,3720.1,0.8014]
[1753198546301,0.1,3722.5,3722.1,3.0]
[1753198546302,0.1336,3722.5,3722.1,3.0]
[1753198546508,0.1336,3722.5,3721.3,6.48861726]
[1753198546509,0.1336,3722.5,3722.2,4.466]
[1753198546947,0.1336,3722.5,3721.9,0.16046799]
[1753198547157,0.1336,3722.5,3722.0,4.5]
[1753198547336,2.68653933,3722.3,3722.0,4.5]
[1753198547651,0.1336,3722.1,3721.5,0.1336]
[1753198547850,0.1336,3722.1,3721.7,3.0]
[1753198548058,0.1336,3722.1,3721.8,0.461]
[1753198548412,0.8329,3722.5,3721.9,4.497]
[1753198548718,2.68710122,3721.5,3721.2,0.461]
[1753198548919,2.82063406,3721.6,3721.3,4.497]
[1753198549119,2.82063406,3721.6,3721.4,0.24392802]
[1753198549328,2.20960962,3721.6,3721.5,0.24392802]
[1753198549626,2.20960962,3721.6,3721.5,4.73892802]
[1753198549820,2.69925808,3721.6,3721.5,4.73692802]
[1753198550035,2.69925808,3721.6,3721.5,4.73492802]
[1753198550238,2.69925808,3721.6,3721.5,0.24392802]
[1753198550422,0.7858,3721.5,3720.5,6.45]
[1753198550746,0.7858,3721.5,3720.4,0.8098]
[1753198550747,0.1336,3720.9,3720.4,0.8098]
[1753198550931,2.68772122,3720.7,3720.5,4.489]
[1753198551138,2.68760166,3720.8,3720.6,4.488]
[1753198551671,2.82113119,3720.9,3720.7,4.488]
[1753198552269,2.68723295,3721.3,3720.8,0.461]
[1753198552434,0.1336,3721.3,3720.7,0.1336]
[1753198552640,2.6877316,3720.7,3720.4,0.8098]
[1753198552865,2.6877316,3720.7,3720.5,4.484]
[1753198553343,0.1336,3720.9,3720.4,0.8098]
[1753198553548,2.82133853,3720.6,3720.5,4.483]
[1753198555073,2.82133853,3720.6,3720.5,4.477]
[1753198555774,2.68803143,3720.2,3720.0,7.3777]
[1753198556085,2.68809978,3720.1,3720.0,9.5844]
[1753198556289,2.6880428,3720.2,3720.0,14.0594]
[1753198556488,2.68789035,3720.4,3720.0,14.0594]
[1753198556489,2.68809978,3720.1,3720.0,14.0594]
[1753198556693,0.1336,3720.6,3720.0,6.5844]
[1753198556991,2.68809978,3720.1,3720.0,6.45]
[1753198557194,2.68809978,3720.1,3720.0,10.921]
[1753198557488,2.82157042,3720.3,3720.0,11.382]
[1753198557489,2.68802926,3720.2,3720.0,11.382]
[1753198557641,2.68809978,3720.1,3720.0,11.382]
[1753198557842,2.68804334,3720.2,3720.0,11.382]
[1753198558178,2.68809978,3720.1,3720.0,11.382]
[1753198558333,2.68809978,3720.1,3720.0,10.917]
[1753198559481,2.68809978,3720.1,3720.0,6.45]
[1753198559691,3.23906709,3720.1,3720.0,10.915]
[1753198560611,0.1344,3720.1,3720.0,10.915]
[1753198561093,2.82249978,3720.1,3720.0,6.45]
[1753198561473,2.82249978,3720.1,3720.0,10.906]
[1753198561861,2.82249978,3720.1,3720.0,6.45]
[1753198562069,2.82249978,3720.1,3720.0,10.906]
[1753198562662,0.1344,3720.1,3720.0,11.367]
[1753198562861,2.68752183,3720.9,3720.0,11.367]
[1753198563059,2.68809978,3720.1,3720.0,6.45]
[1753198563489,2.68809978,3720.1,3719.2,0.8231]
[1753198563490,2.68864263,3719.4,3719.2,0.9575]
[1753198563700,2.68864263,3719.4,3719.3,4.452]
[1753198563861,0.1344,3719.8,3719.3,4.452]
[1753198564220,2.68859283,3719.5,3719.3,4.452]
[1753198564520,2.68850505,3719.6,3719.3,4.452]
[1753198565015,2.82272108,3719.8,3719.1,3.0]
[1753198565016,2.68875026,3719.2,3719.1,3.0]
[1753198565162,2.6885421,3719.5,3719.1,8.96289739]
[1753198565363,0.1344,3719.6,3719.2,0.461]
[1753198565600,0.1344,3719.9,3719.3,0.95108677]
[1753198565798,2.6881093,3720.1,3719.5,3.0]
[1753198565973,2.68804717,3720.2,3719.7,0.1344]
[1753198566176,2.68810624,3720.1,3719.8,4.91]
[1753198566418,2.68810624,3720.1,3719.8,4.449]
[1753198566649,2.68810624,3720.1,3719.9,0.461]
[1753198566904,2.82155829,3720.3,3719.4,0.461]
[1753198566905,2.68846441,3719.6,3719.4,0.461]
[1753198567105,2.82271029,3719.9,3719.5,4.446]
[1753198567308,2.68837121,3719.8,3719.6,0.461]
[1753198568167,2.82267129,3719.9,3719.6,0.461]
[1753198568368,2.68831657,3719.8,3719.7,4.445]
[1753198568620,0.1344,3719.9,3719.7,4.445]
[1753198568799,2.05279149,3723.8,3719.7,4.445]
[1753198568800,0.55,3720.9,3719.9,0.7978]
[1753198569142,2.68782646,3720.5,3720.0,4.902]
[1753198569322,0.1336,3720.5,3720.0,4.46788172]
[1753198569603,0.1336,3720.9,3720.3,0.1336]
[1753198569808,2.68759406,3720.8,3720.4,4.46687883]
[1753198570121,0.1336,3720.9,3720.5,0.461]
[1753198570263,2.68761065,3720.8,3720.5,0.461]
[1753198570467,0.1336,3720.9,3720.5,0.461]
[1753198570696,2.68760326,3720.8,3720.6,0.461]
[1753198571008,2.68712594,3721.5,3720.6,0.461]
[1753198571009,0.002,3721.7,3720.8,0.806]
[1753198571179,0.1336,3721.1,3720.8,0.806]
[1753198571509,0.1336,3721.1,3720.9,0.461]
[1753198571715,0.1336,3721.1,3721.0,4.435]
[1753198571917,2.82097738,3721.1,3721.0,4.435]
[1753198572117,2.68737738,3721.1,3721.0,4.435]
[1753198572321,2.687463,3721.0,3720.8,0.9396]
[1753198572518,2.687463,3721.0,3720.9,4.433]
[1753198572821,2.68723713,3721.3,3720.9,4.894]
[1753198573128,2.68731762,3721.2,3721.0,0.461]
[1753198573292,3.23752183,3720.9,3720.8,1e-08]
[1753198574395,3.66602183,3720.9,3720.8,1e-08]
[1753198574899,2.68802752,3720.2,3720.1,1e-08]
[1753198575097,4.05462752,3720.2,3720.1,1e-08]
[1753198575304,4.48312752,3720.2,3720.1,1e-08]
[1753198575543,8.20023443,3720.2,3720.1,1e-08]
[1753198575747,2.68925642,3718.5,3718.2,0.461]
[1753198575927,3.46987797,3719.3,3718.0,0.7963]
[1753198575928,2.68916768,3718.7,3718.0,0.7963]
[1753198576240,2.68925642,3718.5,3718.4,4.449]
[1753198577454,2.68925642,3718.5,3718.4,0.001]
[1753198580262,2.68925642,3718.5,3718.4,4.44]
[1753198581539,2.68925642,3718.5,3718.4,0.001]
[1753198584471,2.69019692,3717.2,3717.1,0.442]
[1753198584773,0.1344,3717.5,3717.1,4.877]
[1753198584980,0.1344,3717.5,3717.2,3.442]
[1753198585149,0.8303,3718.5,3717.3,0.02690124]
[1753198585478,0.1344,3718.0,3717.4,0.5764]
[1753198585652,0.1344,3718.4,3717.7,0.1344]
[1753198585972,0.1344,3718.4,3717.8,4.90389762]
[1753198586148,0.1344,3718.4,3717.9,3.442]
[1753198586343,0.1344,3718.8,3718.2,0.9442]
[1753198586539,0.1344,3718.8,3718.4,3.0]
[1753198586780,0.1344,3719.2,3718.6,0.1344]
[1753198587083,0.1344,3719.7,3718.9,0.8098]
[1753198587251,0.1344,3719.7,3719.1,3.0]
[1753198587572,0.8303,3721.1,3719.3,0.8098]
[1753198587776,0.1336,3720.4,3719.5,2.6884838]
[1753198587944,0.1336,3720.4,3719.8,0.1344]
[1753198588146,0.1336,3720.4,3719.8,0.16128316]
[1753198588363,0.1336,3720.4,3719.9,0.442]
[1753198588564,0.1336,3720.6,3720.0,5.6868]
[1753198588756,2.68803172,3720.2,3720.0,5.6868]
[1753198589260,2.68809978,3720.1,3720.0,5.6868]
[1753198589467,2.68815971,3720.1,3720.0,4.434]
[1753198589665,2.68809978,3720.1,3720.0,4.434]
[1753198590541,2.68836274,3719.8,3719.6,0.8008]
[1753198590747,2.68838884,3719.7,3719.6,0.8008]
[1753198590978,2.68838884,3719.7,3719.6,5.2348]
[1753198591746,0.1344,3720.0,3719.3,0.1344]
[1753198591946,2.68850207,3719.6,3719.3,0.1344]
[1753198592260,2.6885334,3719.5,3719.4,4.434]
[1753198592578,2.68841023,3719.7,3719.4,4.434]
[1753198592780,2.68841023,3719.7,3719.2,0.8223]
[1753198592781,2.68847364,3719.6,3719.5,4.434]
[1753198593479,0.1344,3719.8,3719.2,1.2643]
[1753198593679,2.68846112,3719.6,3719.5,4.434]
[1753198593982,0.1344,3719.8,3719.5,4.434]
[1753198594378,0.1344,3719.8,3719.2,0.8223]
[1753198594576,0.1344,3719.5,3719.3,4.434]
[1753198595490,0.1344,3719.5,3719.4,4.434]
[1753198595658,2.68860755,3719.4,3718.9,0.8313]
[1753198596054,0.1344,3719.2,3718.7,6.451]
[1753198596250,2.68882256,3719.1,3718.8,4.434]
[1753198596484,0.4323,3719.4,3718.7,6.451]
[1753198596710,2.82329486,3719.0,3718.9,4.434]
[1753198596858,0.1344,3719.0,3718.9,4.434]
[1753198597471,2.82329486,3719.0,3718.9,4.434]
[1753198597670,2.82329486,3719.0,3718.4,0.001]
[1753198597671,2.68925642,3718.5,3718.4,0.001]
[1753198597853,2.68925642,3718.5,3718.4,4.435]
[1753198597854,2.82365642,3718.5,3718.4,4.435]
[1753198598058,0.1344,3718.5,3718.4,4.435]
[1753198598278,2.82365642,3718.5,3718.4,0.001]
[1753198598479,2.82365642,3718.5,3718.4,4.435]
[1753198599359,2.82365642,3718.5,3718.4,0.001]
[1753198599688,2.82365642,3718.5,3718.4,4.435]
[1753198600292,2.82365642,3718.5,3718.4,4.434]
[1753198600513,2.82365642,3718.5,3718.4,0.001]
[1753198600982,2.68983511,3717.7,3717.6,6.451]
[1753198601381,2.82423511,3717.7,3717.6,6.451]
[1753198601581,2.82423511,3717.7,3717.6,10.884]
[1753198602370,2.82423511,3717.7,3717.6,0.001]
[1753198602595,3.37423511,3717.7,3717.6,0.001]
[1753198602798,2.69018413,3717.3,3717.0,0.001]
[1753198603002,2.69026929,3717.1,3717.0,0.001]
[1753198603161,2.69026929,3717.1,3717.0,4.434]
[1753198603978,2.69026929,3717.1,3717.0,4.435]
[1753198604297,2.69026929,3717.1,3717.0,0.001]
[1753198604605,2.69026929,3717.1,3717.0,4.435]
[1753198605501,1.15639851,3717.7,3717.0,4.435]
[1753198605502,0.7865,3718.1,3717.0,4.435]
[1753198605798,0.1344,3717.8,3717.1,3.60330269]